bitfinex-derivatives/quotes_SOLF0:USTF0_20260308
["timestamp","ask_amount","ask_price","bid_price","bid_amount"]
[1772950412279,10.936,82.299,82.251,12.97320766]
[1772950416783,10.936,82.299,82.261,12.97545007]
[1772950417783,10.937,82.291,82.261,12.97545007]
[1772950420491,10.936,82.3,82.261,12.97545007]
[1772950420787,3.93390658,82.31,82.251,12.9803196]
[1772950420989,10.10955745,82.309,82.251,12.9803196]
[1772950421281,10.936,82.294,82.26,16.93309762]
[1772950421480,3.93390658,82.32,82.27,12.99919104]
[1772950421689,3.93390658,82.31,82.26,16.93309762]
[1772950421883,10.11049434,82.309,82.26,16.93309762]
[1772950422079,10.11049434,82.308,82.26,16.93309762]
[1772950422279,10.10836849,82.307,82.26,16.93309762]
[1772950422483,10.10836849,82.306,82.26,12.99919104]
[1772950422678,10.10836849,82.305,82.26,12.99919104]
[1772950422881,10.937,82.29,82.26,12.99919104]
[1772950423183,10.937,82.29,82.26,16.93309762]
[1772950423579,10.936,82.301,82.261,13.04972684]
[1772950424890,10.937,82.293,82.261,13.04972684]
[1772950425686,10.938,82.284,82.261,0.00072684]
[1772950426283,10.937,82.293,82.261,0.00072684]
[1772950429290,10.00454325,82.309,82.261,0.00072684]
[1772950429485,10.00454325,82.308,82.261,0.00072684]
[1772950429686,10.00454325,82.307,82.261,0.00072684]
[1772950429881,3.93828012,82.31,82.261,0.00072684]
[1772950430088,10.00411537,82.309,82.261,0.00072684]
[1772950430288,10.00411537,82.308,82.261,0.00072684]
[1772950430488,10.00411537,82.307,82.261,0.00072684]
[1772950430690,3.93828012,82.31,82.261,0.00072684]
[1772950430988,10.936,82.296,82.261,0.00072684]
[1772950443796,10.935,82.305,82.261,0.00072684]
[1772950444195,10.935,82.305,82.271,6.52693696]
[1772950444393,3.93828012,82.32,82.271,6.52693696]
[1772950444594,3.93828012,82.31,82.271,6.52693696]
[1772950444794,10.02038216,82.309,82.271,6.52693696]
[1772950444994,10.02038216,82.308,82.271,6.52693696]
[1772950445192,20.95538216,82.307,82.271,6.52693696]
[1772950445394,10.02038216,82.306,82.271,6.52693696]
[1772950445595,3.93828012,82.32,82.271,6.52693696]
[1772950445797,10.02305324,82.319,82.271,6.52693696]
[1772950445999,3.93828012,82.32,82.271,6.52693696]
[1772950446000,10.02305324,82.318,82.271,6.52693696]
[1772950446198,10.02305324,82.317,82.271,6.52693696]
[1772950446504,10.935,82.303,82.271,6.52693696]
[1772950446799,10.02305324,82.302,82.271,6.52693696]
[1772950447002,10.02305324,82.301,82.271,6.52693696]
[1772950447202,10.02895877,82.3,82.271,6.52693696]
[1772950447406,10.935,82.303,82.271,6.52693696]
[1772950447600,10.02895877,82.302,82.271,6.52693696]
[1772950447793,10.935,82.303,82.271,6.52693696]
[1772950447794,10.02895877,82.301,82.271,6.52693696]
[1772950447997,10.935,82.303,82.271,6.52693696]
[1772950447998,10.02895877,82.3,82.271,6.52693696]
[1772950448198,10.03339164,82.299,82.271,6.52693696]
[1772950448401,10.935,82.303,82.271,6.52693696]
[1772950448706,10.03343316,82.302,82.271,6.52693696]
[1772950449007,10.935,82.303,82.271,6.52693696]
[1772950449215,10.934,82.312,82.271,6.52693696]
[1772950449405,10.03777212,82.311,82.271,6.52693696]
[1772950449603,10.934,82.312,82.271,6.52693696]
[1772950449905,10.03797892,82.311,82.271,6.52693696]
[1772950450103,10.934,82.312,82.271,6.52693696]
[1772950450405,10.03841141,82.311,82.271,6.52693696]
[1772950450602,10.934,82.312,82.271,6.52693696]
[1772950450798,12.59369792,82.302,82.26,3.93828012]
[1772950451106,1.65869792,82.301,82.26,3.93828012]
[1772950451807,10.936,82.297,82.26,3.93828012]
[1772950453106,10.936,82.297,82.261,3.87789938]
[1772950453407,1.65869792,82.301,82.261,3.87789938]
[1772950453606,1.65869792,82.301,82.27,7.8161795]
[1772950453909,1.66802847,82.323,82.271,3.87789938]
[1772950454206,1.66802847,82.321,82.271,3.87789938]
[1772950454406,1.66802847,82.319,82.271,3.87789938]
[1772950454708,1.66802847,82.317,82.271,3.87789938]
[1772950454907,12.60202847,82.315,82.271,3.87789938]
[1772950455111,10.04080055,82.314,82.271,3.87789938]
[1772950455306,10.04080055,82.313,82.28,3.93828012]
[1772950455503,10.04080055,82.312,82.28,3.93828012]
[1772950455705,10.04080055,82.311,82.28,3.93828012]
[1772950455905,1.66802847,82.315,82.28,3.93828012]
[1772950456107,11.66257004,82.314,82.28,3.93828012]
[1772950456305,10.00232275,82.313,82.28,3.93828012]
[1772950456505,10.00232275,82.312,82.28,3.93828012]
[1772950456711,10.00232275,82.311,82.28,3.93828012]
[1772950457011,10.934,82.313,82.28,7.8161795]
[1772950457309,10.00394179,82.312,82.28,7.8161795]
[1772950457511,10.00394179,82.311,82.28,7.8161795]
[1772950457710,10.934,82.313,82.28,7.8161795]
[1772950457909,10.00428868,82.312,82.28,7.8161795]
[1772950458109,10.00428868,82.311,82.28,7.8161795]
[1772950458410,10.934,82.313,82.28,7.8161795]
[1772950458611,10.00441934,82.312,82.28,7.8161795]
[1772950458910,10.00441934,82.311,82.28,7.8161795]
[1772950459212,10.934,82.313,82.28,7.8161795]
[1772950459414,11.6704663,82.312,82.281,3.87789938]
[1772950459614,10.00456785,82.311,82.281,3.87789938]
[1772950459810,1.66589845,82.312,82.281,3.87789938]
[1772950460005,10.00462836,82.311,82.281,3.87789938]
[1772950460209,1.66589845,82.312,82.281,3.87789938]
[1772950460412,10.00471741,82.311,82.281,3.87789938]
[1772950460712,1.66589845,82.312,82.281,3.87789938]
[1772950460914,10.00471753,82.311,82.281,3.87789938]
[1772950461109,1.66589845,82.312,82.281,3.87789938]
[1772950461310,10.00429046,82.311,82.281,3.87789938]
[1772950461611,10.935,82.307,82.281,3.87789938]
[1772950462407,1.66589845,82.312,82.281,3.87789938]
[1772950462712,1.66925798,82.31,82.281,3.87789938]
[1772950482631,1.66925798,82.31,82.27,3.93828012]
[1772950482831,1.66925798,82.31,82.271,4.01580514]
[1772950483335,3.93828012,82.32,82.271,4.01580514]
[1772950483336,1.60501834,82.304,82.271,4.01580514]
[1772950484738,10.935,82.305,82.271,4.01580514]
[1772950486331,1.6442971,82.304,82.271,4.01580514]
[1772950486532,10.936,82.301,82.271,4.01580514]
[1772950488438,1.6442971,82.304,82.271,4.01580514]
[1772950489139,1.6442971,82.304,82.251,4.01580514]
[1772950489335,10.935,82.302,82.251,4.01580514]
[1772950489542,1.64525936,82.301,82.251,4.01580514]
[1772950490938,1.64525936,82.295,82.251,4.01580514]
[1772950493841,10.02367,82.294,82.251,4.01580514]
[1772950494040,1.65176216,82.293,82.251,4.01580514]
[1772950502355,1.53974828,82.304,82.261,4.06216617]
[1772950502555,1.53742946,82.302,82.261,4.06216617]
[1772950502853,11.5495657,82.301,82.261,4.06216617]
[1772950503051,10.01213624,82.3,82.261,4.06216617]
[1772950503252,10.01213624,82.299,82.261,4.06216617]
[1772950503454,1.53742946,82.301,82.261,4.06216617]
[1772950503751,10.01129305,82.3,82.261,4.06216617]
[1772950503955,1.53742946,82.301,82.261,4.06216617]
[1772950504152,10.01126667,82.3,82.261,4.06216617]
[1772950504355,1.53742946,82.301,82.261,4.06216617]
[1772950504653,10.01094932,82.3,82.261,4.06216617]
[1772950504854,1.53742946,82.301,82.261,4.06216617]
[1772950505055,11.52637675,82.3,82.261,4.06216617]
[1772950505250,1.51542953,82.3,82.261,4.06216617]
[1772950511255,10.00812839,82.299,82.261,4.06216617]
[1772950511463,10.00812839,82.298,82.261,4.06216617]
[1772950511649,10.00812839,82.297,82.261,4.06216617]
[1772950511853,1.51542953,82.3,82.261,4.06216617]
[1772950512157,10.00810808,82.299,82.261,4.06216617]
[1772950512358,10.00810808,82.298,82.261,4.06216617]
[1772950512555,10.00810808,82.297,82.261,4.06216617]
[1772950512758,1.51542953,82.3,82.261,4.06216617]
[1772950512948,10.00672136,82.299,82.261,4.06216617]
[1772950513152,10.00672136,82.298,82.261,4.06216617]
[1772950513357,10.00672136,82.297,82.261,4.06216617]
[1772950513560,1.51542953,82.3,82.261,4.06216617]
[1772950513758,10.00528619,82.299,82.261,4.06216617]
[1772950513959,10.00528619,82.298,82.261,4.06216617]
[1772950514155,10.00528619,82.297,82.261,4.06216617]
[1772950514360,10.00517798,82.296,82.261,4.06216617]
[1772950514558,1.51542953,82.3,82.261,4.06216617]
[1772950514857,10.00517692,82.299,82.261,4.06216617]
[1772950515057,10.00517692,82.298,82.261,4.06216617]
[1772950515258,10.00517692,82.297,82.261,4.06216617]
[1772950515455,10.00517692,82.296,82.261,4.06216617]
[1772950515654,1.51542953,82.3,82.261,4.06216617]
[1772950515958,10.0268636,82.299,82.261,4.06216617]
[1772950516161,10.0268636,82.298,82.261,4.06216617]
[1772950516461,10.0268636,82.297,82.261,4.06216617]
[1772950516660,10.0268636,82.296,82.261,4.06216617]
[1772950516862,1.51542953,82.3,82.261,4.06216617]
[1772950517060,10.0268166,82.299,82.261,4.06216617]
[1772950517261,10.0268166,82.298,82.261,4.06216617]
[1772950517461,10.0268166,82.297,82.261,4.06216617]
[1772950517662,10.0268166,82.296,82.261,4.06216617]
[1772950517863,1.51542953,82.3,82.261,4.06216617]
[1772950518063,10.026718,82.299,82.261,4.06216617]
[1772950518262,10.026718,82.298,82.261,4.06216617]
[1772950518561,10.026718,82.297,82.261,4.06216617]
[1772950518761,10.026718,82.296,82.261,4.06216617]
[1772950519064,1.51542953,82.3,82.261,4.06216617]
[1772950519257,10.02670922,82.299,82.261,4.06216617]
[1772950519463,10.02670922,82.298,82.261,4.06216617]
[1772950519660,10.02670922,82.297,82.261,4.06216617]
[1772950519863,10.02670922,82.296,82.261,4.06216617]
[1772950520064,1.51542953,82.3,82.261,4.06216617]
[1772950520264,10.02678106,82.299,82.261,4.06216617]
[1772950520466,10.02678106,82.298,82.261,4.06216617]
[1772950520665,10.02678106,82.297,82.261,4.06216617]
[1772950520864,10.02678106,82.296,82.261,4.06216617]
[1772950521063,1.51542953,82.3,82.261,4.06216617]
[1772950521263,10.02596083,82.299,82.261,4.06216617]
[1772950521467,10.02596083,82.298,82.261,4.06216617]
[1772950521669,10.02596083,82.297,82.261,4.06216617]
[1772950521866,10.02596083,82.296,82.261,4.06216617]
[1772950522067,1.51542953,82.3,82.261,4.06216617]
[1772950522268,10.02616552,82.299,82.261,4.06216617]
[1772950522470,10.02616552,82.298,82.261,4.06216617]
[1772950522664,10.02616552,82.297,82.261,4.06216617]
[1772950522964,10.02616552,82.296,82.261,4.06216617]
[1772950523163,1.51542953,82.3,82.261,4.06216617]
[1772950523366,10.02681159,82.299,82.261,4.06216617]
[1772950523566,10.02681159,82.298,82.261,4.06216617]
[1772950523766,10.02681159,82.297,82.261,4.06216617]
[1772950524068,10.02681159,82.296,82.261,4.06216617]
[1772950524265,1.51542953,82.3,82.261,4.06216617]
[1772950524469,10.02725021,82.299,82.261,4.06216617]
[1772950524770,10.02725021,82.298,82.261,4.06216617]
[1772950525069,10.02725021,82.297,82.261,4.06216617]
[1772950525262,10.02725021,82.296,82.261,4.06216617]
[1772950525463,10.02725021,82.295,82.261,4.06216617]
[1772950525665,1.51542953,82.3,82.261,4.06216617]
[1772950525865,11.35943605,82.299,82.261,4.06216617]
[1772950526058,10.02902028,82.298,82.261,4.06216617]
[1772950526260,10.02902028,82.297,82.261,4.06216617]
[1772950526465,10.02902028,82.296,82.261,4.06216617]
[1772950526665,10.02902028,82.295,82.261,4.06216617]
[1772950526867,1.33041577,82.299,82.261,4.06216617]
[1772950527171,10.02964017,82.298,82.261,4.06216617]
[1772950527470,10.02964017,82.297,82.261,4.06216617]
[1772950527669,10.02964017,82.296,82.261,4.06216617]
[1772950527871,10.02964017,82.295,82.261,4.06216617]
[1772950528070,1.33041577,82.299,82.261,4.06216617]
[1772950528271,10.03097459,82.298,82.261,4.06216617]
[1772950528470,10.03097459,82.297,82.261,4.06216617]
[1772950528666,10.03097459,82.296,82.261,4.06216617]
[1772950528867,10.03097459,82.295,82.261,4.06216617]
[1772950529066,10.03097459,82.294,82.261,4.06216617]
[1772950529262,1.33041577,82.299,82.261,4.06216617]
[1772950529469,10.03179,82.298,82.261,4.06216617]
[1772950529670,11.39894506,82.297,82.261,4.06216617]
[1772950529867,1.36715506,82.295,82.261,4.06216617]
[1772950530068,10.03179,82.294,82.261,4.06216617]
[1772950530373,1.36715506,82.295,82.261,4.06216617]
[1772950530570,10.03012089,82.294,82.261,4.06216617]
[1772950530768,1.36715506,82.295,82.261,4.06216617]
[1772950530962,10.02875021,82.294,82.261,4.06216617]
[1772950531166,1.36715506,82.295,82.261,4.06216617]
[1772950531367,10.02891788,82.294,82.261,4.06216617]
[1772950531565,1.36715506,82.295,82.261,4.06216617]
[1772950531768,10.02897632,82.294,82.261,4.06216617]
[1772950531970,1.36715506,82.295,82.261,4.06216617]
[1772950532170,10.02897323,82.294,82.261,4.06216617]
[1772950532366,10.02897323,82.293,82.261,4.06216617]
[1772950532674,1.36715506,82.295,82.261,4.06216617]
[1772950532873,10.02997731,82.294,82.261,4.06216617]
[1772950533173,10.02997731,82.293,82.261,4.06216617]
[1772950533367,1.36715506,82.295,82.261,4.06216617]
[1772950533567,11.40013759,82.294,82.261,4.06216617]
[1772950533768,11.40013759,82.293,82.261,4.06216617]
[1772950533966,10.0311836,82.292,82.261,4.06216617]
[1772950534169,1.36895399,82.293,82.261,4.06216617]
[1772950534376,10.02793306,82.292,82.261,4.06216617]
[1772950534576,10.02793306,82.291,82.261,4.06216617]
[1772950534772,1.36895399,82.293,82.261,4.06216617]
[1772950534974,10.02782155,82.292,82.261,4.06216617]
[1772950535177,1.3642367,82.306,82.261,4.06216617]
[1772950535379,1.3642367,82.304,82.261,4.06216617]
[1772950535575,1.3642367,82.302,82.261,4.06216617]
[1772950535877,1.3642367,82.3,82.261,4.06216617]
[1772950536178,1.3642367,82.298,82.261,4.06216617]
[1772950536381,10.02893159,82.297,82.261,4.06216617]
[1772950536586,10.02893159,82.296,82.261,4.06216617]
[1772950536877,10.02893159,82.295,82.261,4.06216617]
[1772950537070,10.02893159,82.294,82.261,4.06216617]
[1772950537272,10.02893159,82.293,82.261,4.06216617]
[1772950537479,10.02893159,82.292,82.261,4.06216617]
[1772950537686,10.02893159,82.291,82.261,4.06216617]
[1772950537874,1.3642367,82.298,82.261,4.06216617]
[1772950538074,11.4316182,82.297,82.261,4.06216617]
[1772950538380,10.03074106,82.296,82.261,4.06216617]
[1772950538578,1.40087714,82.294,82.261,4.06216617]
[1772950538781,10.03074106,82.293,82.261,4.06216617]
[1772950538978,10.03074106,82.292,82.261,4.06216617]
[1772950539179,1.40087714,82.294,82.261,4.06216617]
[1772950539180,10.03074106,82.291,82.261,4.06216617]
[1772950539379,1.40087714,82.294,82.261,4.06216617]
[1772950539679,10.03624745,82.293,82.261,4.06216617]
[1772950539876,10.03624745,82.292,82.261,4.06216617]
[1772950540080,10.03624745,82.291,82.261,4.06216617]
[1772950540281,1.40087714,82.294,82.261,4.06216617]
[1772950540481,10.03734769,82.293,82.261,4.06216617]
[1772950540682,10.03734769,82.292,82.261,4.06216617]
[1772950540882,10.03734769,82.291,82.261,4.06216617]
[1772950541082,1.40087714,82.294,82.261,4.06216617]
[1772950541285,10.0363079,82.293,82.261,4.06216617]
[1772950541481,10.0363079,82.292,82.261,4.06216617]
[1772950541680,10.0363079,82.291,82.261,4.06216617]
[1772950542286,1.40087714,82.294,82.261,4.06216617]
[1772950542584,10.0343084,82.293,82.261,4.06216617]
[1772950542783,10.0343084,82.292,82.261,4.06216617]
[1772950542983,10.0343084,82.291,82.261,4.06216617]
[1772950543184,1.40087714,82.294,82.261,4.06216617]
[1772950543380,10.03531577,82.293,82.261,4.06216617]
[1772950543581,10.03531577,82.292,82.261,4.06216617]
[1772950543781,10.03531577,82.291,82.261,4.06216617]
[1772950543983,1.40087714,82.294,82.261,4.06216617]
[1772950544179,10.03548093,82.293,82.261,4.06216617]
[1772950544378,10.03548093,82.292,82.261,4.06216617]
[1772950544578,10.03548093,82.291,82.261,4.06216617]
[1772950544786,1.40087714,82.294,82.261,4.06216617]
[1772950545077,10.03527938,82.293,82.261,4.06216617]
[1772950545282,10.03527938,82.292,82.261,4.06216617]
[1772950545481,10.03527938,82.291,82.261,4.06216617]
[1772950545685,1.40087714,82.294,82.261,4.06216617]
[1772950545886,10.02613176,82.293,82.261,4.06216617]
[1772950546186,1.32215099,82.31,82.261,4.06216617]
[1772950546481,1.32215099,82.308,82.261,4.06216617]
[1772950546682,1.32215099,82.306,82.261,4.06216617]
[1772950546882,1.32215099,82.304,82.261,4.06216617]
[1772950547083,1.19931324,82.302,82.261,4.06216617]
[1772950547285,1.19931324,82.3,82.261,4.06216617]
[1772950547479,1.19931324,82.298,82.261,4.06216617]
[1772950547675,1.19931324,82.296,82.261,4.06216617]
[1772950554088,10.935,82.308,82.261,4.06216617]
[1772950554089,1.08184323,82.307,82.261,4.06216617]
[1772950554285,1.08184323,82.305,82.261,4.06216617]
[1772950554482,1.08184323,82.303,82.261,4.06216617]
[1772950554691,10.02838203,82.304,82.261,4.06216617]
[1772950554692,1.08184323,82.301,82.261,4.06216617]
[1772950554988,1.08184323,82.299,82.261,4.06216617]
[1772950555187,10.02838203,82.298,82.263,3.67344316]
[1772950555388,1.08290879,82.308,82.271,3.67344316]
[1772950555693,10.02847084,82.307,82.271,3.67344316]
[1772950555901,10.02847084,82.306,82.271,3.67344316]
[1772950556194,1.08290879,82.32,82.281,3.67344316]
[1772950556495,10.02677328,82.319,82.281,3.67344316]
[1772950556694,1.08290879,82.317,82.271,3.67344316]
[1772950556892,1.08290879,82.317,82.26,3.93756763]
[1772950556893,1.08290879,82.309,82.261,3.67344316]
[1772950557088,1.04558658,82.307,82.261,3.67344316]
[1772950557290,1.04558658,82.305,82.261,3.67344316]
[1772950557588,1.04558658,82.303,82.261,3.67344316]
[1772950557790,1.04558658,82.301,82.261,3.67344316]
[1772950558089,1.04558658,82.323,82.281,3.67344316]
[1772950558292,1.04558658,82.321,82.281,3.67344316]
[1772950558488,1.04558658,82.319,82.281,3.67344316]
[1772950558690,10.87623243,82.318,82.281,3.67344316]
[1772950558890,10.87623243,82.317,82.281,3.67344316]
[1772950559091,9.83064585,82.316,82.281,3.67344316]
[1772950559290,9.83064585,82.315,82.281,3.67344316]
[1772950559498,1.04558658,82.317,82.281,3.67344316]
[1772950559696,9.82569408,82.316,82.281,3.67344316]
[1772950559893,9.82569408,82.315,82.281,3.67344316]
[1772950560094,1.04558658,82.317,82.281,3.67344316]
[1772950560299,9.82569408,82.316,82.281,3.67344316]
[1772950560492,1.00718871,82.327,82.281,3.67344316]
[1772950560692,10.8327553,82.326,82.281,3.67344316]
[1772950560892,10.8327553,82.325,82.281,3.67344316]
[1772950561098,9.82556659,82.324,82.281,3.67344316]
[1772950561290,9.82556659,82.323,82.281,3.67344316]
[1772950561491,0.99798014,82.331,82.281,3.67344316]
[1772950561699,9.82544672,82.33,82.281,3.67344316]
[1772950561997,0.99798014,82.331,82.281,3.67344316]
[1772950563092,0.99798014,82.331,82.291,4.0560622]
[1772950573201,0.97734902,82.341,82.295,4.0560622]
[1772950574102,0.97734902,82.341,82.299,4.0560622]
[1772950574690,0.97734902,82.341,82.302,4.0560622]
[1772950574892,0.97734902,82.346,82.311,4.0560622]
[1772950578206,0.97394393,82.365,82.311,4.0560622]
[1772950578407,0.97394393,82.364,82.311,4.0560622]
[1772950579503,0.97383846,82.349,82.301,4.0560622]
[1772950582612,1.00256629,82.368,82.321,4.0560622]
[1772950584610,1.00256629,82.368,82.331,4.0560622]
[1772950585612,0.99784655,82.365,82.321,4.0560622]
[1772950590823,0.9946065,82.377,82.321,4.0560622]
[1772950591022,3.93756763,82.37,82.321,4.0560622]
[1772950591225,0.99473364,82.365,82.321,4.0560622]
[1772950591524,0.99473364,82.359,82.321,4.0560622]
[1772950596424,0.99473364,82.359,82.323,3.96757838]
[1772950596631,3.93756763,82.37,82.323,3.96757838]
[1772950596632,1.02889281,82.369,82.323,3.96757838]
[1772950597430,3.93756763,82.37,82.323,3.96757838]
[1772950598033,3.93756763,82.37,82.325,3.96757838]
[1772950601338,0.9940395,82.378,82.327,3.96757838]
[1772950601837,3.93756763,82.37,82.327,3.96757838]
[1772950603838,0.9940395,82.378,82.335,3.96757838]
[1772950604839,0.9940395,82.378,82.338,3.96757838]
[1772950605941,0.9940395,82.378,82.34,3.96757838]
[1772950607136,0.99667933,82.393,82.342,3.96757838]
[1772950607435,0.99667933,82.389,82.342,3.96757838]
[1772950608343,3.93756763,82.36,82.323,3.96757838]
[1772950608542,0.99667933,82.369,82.323,3.96757838]
[1772950608942,3.93756763,82.36,82.323,3.96757838]
[1772950609737,3.93756763,82.36,82.326,10.932]
[1772950610042,3.93756763,82.36,82.327,3.96757838]
[1772950610439,3.93186417,82.36,82.327,3.96757838]
[1772950611238,0.99667933,82.369,82.327,3.96757838]
[1772950617445,0.99667933,82.369,82.329,3.96757838]
[1772950618750,3.93186417,82.37,82.331,3.96757838]
[1772950619747,1.13429654,82.378,82.332,10.931]
[1772950620051,1.13429654,82.378,82.333,3.96757838]
[1772950620850,1.13510651,82.376,82.333,3.96757838]
[1772950621448,1.13272999,82.374,82.333,3.96757838]
[1772950622850,1.13272999,82.374,82.337,4.05566589]
[1772950623447,1.12791122,82.389,82.344,4.05566589]
[1772950623645,10.89828481,82.388,82.344,4.05566589]
[1772950623850,9.77037359,82.387,82.344,4.05566589]
[1772950624049,9.77037359,82.386,82.344,4.05566589]
[1772950624250,9.77037359,82.385,82.344,4.05566589]
[1772950624452,9.77088005,82.384,82.347,4.05566589]
[1772950624650,1.12791122,82.388,82.347,4.05566589]
[1772950625453,1.12362796,82.399,82.35,4.05566589]
[1772950625848,10.89669696,82.398,82.35,4.05566589]
[1772950626047,1.12362796,82.398,82.35,4.05566589]
[1772950626953,1.12362796,82.398,82.354,4.05566589]
[1772950627356,1.1301752,82.396,82.354,4.05566589]
[1772950628747,1.1301752,82.396,82.356,4.05566589]
[1772950630058,1.12342157,82.389,82.346,4.05566589]
[1772950630358,12.30692696,82.417,82.321,4.05566589]
[1772950630359,1.12342157,82.379,82.321,4.05566589]
[1772950630555,5.05528574,82.37,82.321,4.05566589]
[1772950630759,5.05528574,82.37,82.335,10.931]
[1772950631655,5.05528574,82.37,82.332,4.05566589]
[1772950636464,1.11128921,82.369,82.332,4.05566589]
[1772950636657,1.11128921,82.369,82.318,4.05566589]
[1772950637464,1.11128921,82.369,82.328,4.05566589]
[1772950638867,1.11128921,82.369,82.33,4.05566589]
[1772950640661,1.11128921,82.369,82.32,3.93186417]
[1772950640662,1.14148144,82.395,82.336,4.05566589]
[1772950640865,3.93186417,82.38,82.336,4.05566589]
[1772950641264,5.05299523,82.38,82.336,4.05566589]
[1772950641665,1.12113106,82.379,82.336,4.05566589]
[1772950663388,1.2592315,82.377,82.336,4.05566589]
[1772950664290,1.2592315,82.377,82.339,10.93]
[1772950664490,1.2592315,82.377,82.34,4.02522742]
[1772950671191,9.81955478,82.376,82.34,4.02522742]
[1772950671389,1.2592315,82.377,82.34,4.02522742]
[1772950671589,9.81933826,82.376,82.34,4.02522742]
[1772950671889,1.2592315,82.377,82.34,4.02522742]
[1772950672089,9.81835116,82.376,82.34,4.02522742]
[1772950672291,9.81835116,82.375,82.34,4.02522742]
[1772950672593,1.2592315,82.377,82.34,4.02522742]
[1772950672792,11.07857802,82.376,82.34,4.02522742]
[1772950672991,9.82044321,82.375,82.34,4.02522742]
[1772950673184,1.25813481,82.376,82.34,4.02522742]
[1772950673185,9.82115283,82.374,82.34,4.02522742]
[1772950673389,1.25813481,82.376,82.34,4.02522742]
[1772950673589,9.82114984,82.375,82.34,4.02522742]
[1772950673790,9.82114984,82.374,82.34,4.02522742]
[1772950673991,1.25813481,82.376,82.34,4.02522742]
[1772950674192,9.82114581,82.375,82.34,4.02522742]
[1772950674491,9.82114581,82.374,82.34,4.02522742]
[1772950674692,9.82114581,82.373,82.34,4.02522742]
[1772950674893,1.25813481,82.376,82.34,4.02522742]
[1772950675095,9.8251709,82.375,82.34,4.02522742]
[1772950675294,9.8251709,82.374,82.34,4.02522742]
[1772950675489,9.8251709,82.373,82.34,4.02522742]
[1772950675688,1.25813481,82.376,82.34,4.02522742]
[1772950675888,9.82675416,82.375,82.34,4.02522742]
[1772950676094,9.82675416,82.374,82.34,4.02522742]
[1772950676303,9.82675416,82.373,82.34,4.02522742]
[1772950676593,1.25813481,82.376,82.34,4.02522742]
[1772950676594,9.82675416,82.372,82.34,4.02522742]
[1772950676794,1.25813481,82.376,82.34,4.02522742]
[1772950676994,9.82607922,82.375,82.34,4.02522742]
[1772950677195,9.82607922,82.374,82.34,4.02522742]
[1772950677394,9.82607922,82.373,82.34,4.02522742]
[1772950677696,9.82607922,82.372,82.34,4.02522742]
[1772950677997,1.25813481,82.376,82.34,4.02522742]
[1772950678193,11.07763544,82.375,82.34,4.02522742]
[1772950678395,9.826296,82.374,82.34,4.02522742]
[1772950678594,9.826296,82.373,82.34,4.02522742]
[1772950678798,9.826296,82.372,82.34,4.02522742]
[1772950679094,1.25133944,82.375,82.34,4.02522742]
[1772950679294,9.82798987,82.374,82.34,4.02522742]
[1772950679494,9.82798987,82.373,82.34,4.02522742]
[1772950679694,9.82798987,82.372,82.34,4.02522742]
[1772950679897,1.25133944,82.375,82.34,4.02522742]
[1772950680097,9.82778807,82.374,82.34,4.02522742]
[1772950680397,11.07895999,82.373,82.34,4.02522742]
[1772950680698,9.82830728,82.372,82.34,4.02522742]
[1772950680898,1.25117192,82.373,82.34,4.02522742]
[1772950681093,9.82836385,82.372,82.34,4.02522742]
[1772950681294,1.25117192,82.373,82.34,4.02522742]
[1772950681494,9.828741,82.372,82.34,4.02522742]
[1772950681695,1.25117192,82.373,82.34,4.02522742]
[1772950681893,9.82874249,82.372,82.34,4.02522742]
[1772950682093,1.25117192,82.373,82.34,4.02522742]
[1772950682292,9.82932484,82.372,82.34,4.02522742]
[1772950682598,1.25117192,82.373,82.34,4.02522742]
[1772950682799,9.82932334,82.372,82.34,4.02522742]
[1772950683099,9.8302057,82.371,82.34,4.02522742]
[1772950683301,1.25117192,82.373,82.34,4.02522742]
[1772950683596,9.8302057,82.372,82.34,4.02522742]
[1772950683797,9.8302057,82.371,82.34,4.02522742]
[1772950683996,1.25117192,82.373,82.34,4.02522742]
[1772950684196,9.83000385,82.372,82.34,4.02522742]
[1772950684397,9.83000385,82.371,82.34,4.02522742]
[1772950684601,1.25117192,82.373,82.34,4.02522742]
[1772950684800,9.830867,82.372,82.34,4.02522742]
[1772950685000,9.830867,82.371,82.34,4.02522742]
[1772950685201,1.25117192,82.373,82.34,4.02522742]
[1772950685401,9.82975954,82.372,82.34,4.02522742]
[1772950685699,9.82975954,82.371,82.34,4.02522742]
[1772950685902,1.25117192,82.373,82.34,4.02522742]
[1772950686096,9.82982667,82.372,82.34,4.02522742]
[1772950686300,1.25117192,82.373,82.34,4.02522742]
[1772950686504,9.82997736,82.372,82.34,4.02522742]
[1772950686698,1.25117192,82.373,82.34,4.02522742]
[1772950686899,9.82997736,82.372,82.34,4.02522742]
[1772950687098,9.82997736,82.371,82.34,4.02522742]
[1772950687300,1.25117192,82.373,82.34,4.02522742]
[1772950687500,9.83059845,82.372,82.34,4.02522742]
[1772950687700,9.83059845,82.371,82.34,4.02522742]
[1772950687898,1.25117192,82.373,82.34,4.02522742]
[1772950688100,9.83059298,82.372,82.34,4.02522742]
[1772950688302,9.83059298,82.371,82.34,4.02522742]
[1772950688502,1.25117192,82.373,82.34,4.02522742]
[1772950688699,9.83056923,82.372,82.34,4.02522742]